[Event "Late-Titled-Tuesday-Blitz-June-04-2024"]
[Site "Chess.com"]
[Date "2024.06.04"]
[Round "6"]
[White "IlyaGrigorjev"]
[Black "Dedic8"]
[Result "1-0"]
[WhiteElo "2864"]
[BlackElo "2924"]
[TimeControl "180+1"]
[EndTime "15:07:27 PDT"]
[Termination "IlyaGrigorjev won by resignation"]

1. e4 {[%clk 0:03:00.9]} 1... c5 {[%clk 0:03:00.2]} 2. Nf3 {[%clk 0:03:01.4]}
2... d6 {[%clk 0:03:00.8]} 3. d4 {[%clk 0:03:01.4]} 3... cxd4 {[%clk 0:03:01.7]}
4. Nxd4 {[%clk 0:03:02.3]} 4... Nf6 {[%clk 0:03:02.2]} 5. Nc3 {[%clk 0:03:03]}
5... Nc6 {[%clk 0:03:02.9]} 6. f3 {[%clk 0:02:56.8]} 6... e6 {[%clk 0:02:54.9]}
7. Be3 {[%clk 0:02:55.9]} 7... Be7 {[%clk 0:02:54.7]} 8. g4 {[%clk 0:02:55.4]}
8... d5 {[%clk 0:02:50.1]} 9. g5 {[%clk 0:02:50.3]} 9... Nh5 {[%clk 0:02:46.8]}
10. exd5 {[%clk 0:02:48.1]} 10... exd5 {[%clk 0:02:46.6]} 11. f4 {[%clk
0:02:34]} 11... g6 {[%clk 0:02:46.6]} 12. Bg2 {[%clk 0:02:25.1]} 12... Be6
{[%clk 0:02:36.8]} 13. f5 {[%clk 0:02:15.4]} 13... Bxg5 {[%clk 0:02:14.6]} 14.
fxe6 {[%clk 0:02:14.8]} 14... Bxe3 {[%clk 0:02:14.8]} 15. exf7+ {[%clk
0:02:15.3]} 15... Kxf7 {[%clk 0:02:13]} 16. Qf3+ {[%clk 0:01:15.8]} 16... Nf4
{[%clk 0:02:12]} 17. Ne6 {[%clk 0:00:46.5]} 17... Qh4+ {[%clk 0:01:42]} 18. Kf1
{[%clk 0:00:47]} 18... Kxe6 {[%clk 0:01:10.4]} 19. Qxe3+ {[%clk 0:00:47.3]}
19... Kd6 {[%clk 0:00:56.8]} 20. Nxd5 {[%clk 0:00:21.9]} 20... Nxg2 {[%clk
0:00:25.4]} 21. Qa3+ {[%clk 0:00:22.2]} 21... Kxd5 {[%clk 0:00:25.1]} 22. Rd1+
{[%clk 0:00:20.3]} 22... Ke6 {[%clk 0:00:24.5]} 23. Qb3+ {[%clk 0:00:10.1]}
23... Ke7 {[%clk 0:00:20.2]} 24. Qxb7+ {[%clk 0:00:09.5]} 24... Kf6 {[%clk
0:00:09]} 25. Qxc6+ {[%clk 0:00:09.7]} 25... Kg5 {[%clk 0:00:09.7]} 26. Qxg2+
{[%clk 0:00:07.2]} 26... Kh6 {[%clk 0:00:10.1]} 27. Qd2+ {[%clk 0:00:07]} 27...
g5 {[%clk 0:00:09.2]} 28. Qd6+ {[%clk 0:00:07.3]} 28... Kh5 {[%clk 0:00:09.7]}
29. Rd3 {[%clk 0:00:04.4]} 29... Rhf8+ {[%clk 0:00:08.1]} 30. Ke2 {[%clk
0:00:01.4]} 30... Qg4+ {[%clk 0:00:05]} 31. Kd2 {[%clk 0:00:01.6]} 31... Qg2+
{[%clk 0:00:05.5]} 32. Kc3 {[%clk 0:00:02.2]} 32... Rac8+ {[%clk 0:00:05.3]} 33.
Kb4 {[%clk 0:00:02.9]} 33... Rb8+ {[%clk 0:00:04.9]} 34. Ka3 {[%clk 0:00:01.5]}
34... Qxh1 {[%clk 0:00:04.7]} 35. Qd7 {[%clk 0:00:01]} 35... Qe4 {[%clk
0:00:03.1]} 36. Rh3+ {[%clk 0:00:01.6]} 36... Qh4 {[%clk 0:00:02.8]} 37. Rxh4+
{[%clk 0:00:02.1]} 37... Kxh4 {[%clk 0:00:03.6]} 38. Qxh7+ {[%clk 0:00:02.9]}
38... Kg4 {[%clk 0:00:04.3]} 39. Qe4+ {[%clk 0:00:03.6]} 39... Kh5 {[%clk
0:00:04.7]} 40. Qh7+ {[%clk 0:00:04.1]} 40... Kg4 {[%clk 0:00:05.1]} 41. h3+
{[%clk 0:00:04.2]} 41... Kf4 {[%clk 0:00:05.1]} 42. Qh5 {[%clk 0:00:04.7]} 42...
Rh8 {[%clk 0:00:05]} 43. Qg4+ {[%clk 0:00:05.3]} 43... Ke5 {[%clk 0:00:05.4]}
44. Qxg5+ {[%clk 0:00:06.2]} 44... Kd6 {[%clk 0:00:06]} 45. h4 {[%clk
0:00:06.8]} 45... Rbg8 {[%clk 0:00:05.7]} 46. Qf6+ {[%clk 0:00:07.2]} 46... Kc5
{[%clk 0:00:05.7]} 47. b4+ {[%clk 0:00:07.1]} 47... Kd5 {[%clk 0:00:04.7]} 48.
Qf5+ {[%clk 0:00:06.2]} 48... Kc6 {[%clk 0:00:04.6]} 49. Qc5+ {[%clk 0:00:06.1]}
49... Kb7 {[%clk 0:00:05.2]} 50. h5 {[%clk 0:00:05.3]} 50... Rc8 {[%clk
0:00:05.2]} 51. Qe7+ {[%clk 0:00:05.3]} 51... Ka8 {[%clk 0:00:05.3]} 52. Qe4+
{[%clk 0:00:05.6]} 52... Kb8 {[%clk 0:00:05.5]} 53. Qf4+ {[%clk 0:00:04.5]}
53... Kb7 {[%clk 0:00:05.8]} 54. Qf7+ {[%clk 0:00:04.2]} 54... Rc7 {[%clk
0:00:05.6]} 55. Qd5+ {[%clk 0:00:04.5]} 55... Kb8 {[%clk 0:00:05.7]} 56. c4
{[%clk 0:00:05.2]} 56... Rch7 {[%clk 0:00:05.1]} 57. Qe5+ {[%clk 0:00:05.8]}
57... Ka8 {[%clk 0:00:05.6]} 58. c5 {[%clk 0:00:05]} 58... Rxh5 {[%clk
0:00:05.6]} 59. Qe4+ {[%clk 0:00:05.7]} 59... Kb8 {[%clk 0:00:05.8]} 60. Ka4
{[%clk 0:00:06.4]} 60... Rh2 {[%clk 0:00:05.3]} 61. Kb5 {[%clk 0:00:05.6]} 61...
R2h7 {[%clk 0:00:04.8]} 62. a4 {[%clk 0:00:05.5]} 62... Rb7+ {[%clk 0:00:04.4]}
63. Ka6 {[%clk 0:00:06.1]} 63... Rh6+ {[%clk 0:00:04.7]} 64. Ka5 {[%clk
0:00:05.5]} 64... Rh8 {[%clk 0:00:03.9]} 65. b5 {[%clk 0:00:06.1]} 65... Rc7
{[%clk 0:00:03.9]} 66. c6 {[%clk 0:00:06]} 66... Rhc8 {[%clk 0:00:03.5]} 67. Qe5
{[%clk 0:00:06.1]} 67... Ka8 {[%clk 0:00:03.9]} 68. Ka6 {[%clk 0:00:05.5]} 68...
Rh7 {[%clk 0:00:04.2]} 69. a5 {[%clk 0:00:03.6]} 69... Rhc7 {[%clk 0:00:04.3]}
70. Qd5 {[%clk 0:00:03.9]} 70... Kb8 {[%clk 0:00:04.4]} 71. Qe4 {[%clk
0:00:04.3]} 71... Ka8 {[%clk 0:00:04.6]} 72. Qe5 {[%clk 0:00:04.6]} 72... Kb8
{[%clk 0:00:05]} 73. b6 {[%clk 0:00:05]} 73... axb6 {[%clk 0:00:04]} 74. axb6
{[%clk 0:00:05.9]} 74... Ka8 {[%clk 0:00:03.1]} 75. bxc7 {[%clk 0:00:04.4]}
75... Rh8 {[%clk 0:00:02.7]} 76. Qb5 {[%clk 0:00:03.9]} 1-0

[Event "Late-Titled-Tuesday-Blitz-June-04-2024"]
[Site "Chess.com"]
[Date "2024.06.04"]
[Round "6"]
[White "IMRosen"]
[Black "BerlinDrawer"]
[Result "1/2-1/2"]
[WhiteElo "2740"]
[BlackElo "2582"]
[TimeControl "180+1"]
[EndTime "15:07:37 PDT"]
[Termination "Game drawn - insufficient material"]

1. e4 {[%clk 0:03:00.9]} 1... c6 {[%clk 0:02:55.6]} 2. d4 {[%clk 0:02:56.7]}
2... Na6 {[%clk 0:02:55.1]} 3. c3 {[%clk 0:02:51]} 3... Nc7 {[%clk 0:02:54.2]}
4. Bd3 {[%clk 0:02:50.8]} 4... d5 {[%clk 0:02:53.5]} 5. exd5 {[%clk 0:02:51.1]}
5... cxd5 {[%clk 0:02:53]} 6. Bf4 {[%clk 0:02:50]} 6... Nf6 {[%clk 0:02:50.2]}
7. Nd2 {[%clk 0:02:48.6]} 7... g6 {[%clk 0:02:50.2]} 8. h4 {[%clk 0:02:43]} 8...
Bg7 {[%clk 0:02:41]} 9. h5 {[%clk 0:02:39.9]} 9... Bg4 {[%clk 0:02:40.1]} 10. f3
{[%clk 0:02:39.6]} 10... Nxh5 {[%clk 0:02:31.5]} 11. Rxh5 {[%clk 0:02:15.9]}
11... Bxh5 {[%clk 0:02:28.5]} 12. g4 {[%clk 0:02:16.3]} 12... O-O {[%clk
0:02:24.8]} 13. gxh5 {[%clk 0:02:13.8]} 13... e5 {[%clk 0:02:24.2]} 14. Bxe5
{[%clk 0:01:57.1]} 14... Qh4+ {[%clk 0:02:15.6]} 15. Kf1 {[%clk 0:01:57.4]}
15... Bxe5 {[%clk 0:02:15.2]} 16. dxe5 {[%clk 0:01:58.3]} 16... Ne6 {[%clk
0:02:13.4]} 17. Qe1 {[%clk 0:01:48.9]} 17... Qxh5 {[%clk 0:02:11]} 18. Qg3
{[%clk 0:01:46.3]} 18... f6 {[%clk 0:02:08.7]} 19. Re1 {[%clk 0:01:41.7]} 19...
Nc5 {[%clk 0:01:50.2]} 20. Bc2 {[%clk 0:01:37.1]} 20... Rae8 {[%clk 0:01:50.2]}
21. b4 {[%clk 0:01:28.7]} 21... fxe5 {[%clk 0:01:41.5]} 22. bxc5 {[%clk
0:01:23.9]} 22... e4 {[%clk 0:01:41.6]} 23. Bb3 {[%clk 0:01:05.2]} 23... Kh8
{[%clk 0:01:30.8]} 24. Kg2 {[%clk 0:00:55.6]} 24... e3 {[%clk 0:01:09]} 25. Nf1
{[%clk 0:00:51.9]} 25... Rf5 {[%clk 0:01:07.9]} 26. Rxe3 {[%clk 0:00:45.2]}
26... Ref8 {[%clk 0:00:58.1]} 27. Nh2 {[%clk 0:00:38.3]} 27... Qh6 {[%clk
0:00:52.9]} 28. Ng4 {[%clk 0:00:37.8]} 28... Qg7 {[%clk 0:00:52.6]} 29. Re5
{[%clk 0:00:24.2]} 29... h5 {[%clk 0:00:42.8]} 30. Rxf5 {[%clk 0:00:23.9]} 30...
gxf5 {[%clk 0:00:42.4]} 31. Ne5 {[%clk 0:00:19.6]} 31... Qxg3+ {[%clk 0:00:35]}
32. Kxg3 {[%clk 0:00:20.5]} 32... f4+ {[%clk 0:00:33.6]} 33. Kh2 {[%clk
0:00:18.5]} 33... Kh7 {[%clk 0:00:33.6]} 34. Nh3 {[%clk 0:00:18.4]} 34... Re8
{[%clk 0:00:30.6]} 35. Nd3 {[%clk 0:00:13.9]} 35... Re3 {[%clk 0:00:29]} 36.
Ndxf4 {[%clk 0:00:12.9]} 36... Rxc3 {[%clk 0:00:27.9]} 37. Ne6 {[%clk
0:00:09.5]} 37... b6 {[%clk 0:00:24.1]} 38. Bxd5 {[%clk 0:00:06.9]} 38... bxc5
{[%clk 0:00:23]} 39. Be4+ {[%clk 0:00:07.6]} 39... Kg8 {[%clk 0:00:21.5]} 40.
Kg3 {[%clk 0:00:08.2]} 40... Ra3 {[%clk 0:00:20.4]} 41. Nxc5 {[%clk 0:00:04.5]}
41... Kg7 {[%clk 0:00:19.1]} 42. Bd5 {[%clk 0:00:04.5]} 42... Ra5 {[%clk
0:00:18.2]} 43. Bb3 {[%clk 0:00:02.6]} 43... Rxc5 {[%clk 0:00:17.1]} 44. Nf4
{[%clk 0:00:03.4]} 44... Ra5 {[%clk 0:00:16.3]} 45. Ne6+ {[%clk 0:00:02.3]}
45... Kf6 {[%clk 0:00:16.2]} 46. Nd4 {[%clk 0:00:02.9]} 46... Rc5 {[%clk
0:00:14.9]} 47. Ne2 {[%clk 0:00:03]} 47... a5 {[%clk 0:00:14.6]} 48. Nf4 {[%clk
0:00:03.4]} 48... Re5 {[%clk 0:00:11.6]} 49. Ng2 {[%clk 0:00:03.9]} 49... Rb5
{[%clk 0:00:10.3]} 50. Nh4 {[%clk 0:00:04.2]} 50... Rb4 {[%clk 0:00:09.8]} 51.
f4 {[%clk 0:00:04.3]} 51... a4 {[%clk 0:00:08.9]} 52. Bd5 {[%clk 0:00:04]} 52...
Rb2 {[%clk 0:00:08.4]} 53. Nf3 {[%clk 0:00:04.4]} 53... a3 {[%clk 0:00:08]} 54.
Bc4 {[%clk 0:00:02.1]} 54... Rc2 {[%clk 0:00:07.8]} 55. Bg8 {[%clk 0:00:02.5]}
55... Rc3 {[%clk 0:00:08.1]} 56. Bd5 {[%clk 0:00:02.6]} 56... Rd3 {[%clk
0:00:07.9]} 57. Bc4 {[%clk 0:00:02.3]} 57... Rc3 {[%clk 0:00:07.9]} 58. Bg8
{[%clk 0:00:03]} 58... Kf5 {[%clk 0:00:07.7]} 59. Bh7+ {[%clk 0:00:02.5]} 59...
Kf6 {[%clk 0:00:07.7]} 60. Kh4 {[%clk 0:00:02.3]} 60... Rxf3 {[%clk 0:00:07.1]}
61. Bg8 {[%clk 0:00:02.8]} 61... Rxf4+ {[%clk 0:00:07.5]} 62. Kxh5 {[%clk
0:00:03.4]} 62... Rb4 {[%clk 0:00:07.8]} 63. Bd5 {[%clk 0:00:01.6]} 63... Rb2
{[%clk 0:00:08.7]} 64. Kg4 {[%clk 0:00:01.4]} 64... Ke5 {[%clk 0:00:09.6]} 65.
Bg8 {[%clk 0:00:01.8]} 65... Kd4 {[%clk 0:00:10.5]} 66. Kf3 {[%clk 0:00:02.2]}
66... Rd2 {[%clk 0:00:10.4]} 67. Bf7 {[%clk 0:00:02.1]} 67... Rd3+ {[%clk
0:00:10.9]} 68. Ke2 {[%clk 0:00:02.3]} 68... Re3+ {[%clk 0:00:11.2]} 69. Kd2
{[%clk 0:00:02.9]} 69... Rg3 {[%clk 0:00:10.8]} 70. Kc2 {[%clk 0:00:03]} 70...
Kc5 {[%clk 0:00:10.1]} 71. Bg8 {[%clk 0:00:02.9]} 71... Kb4 {[%clk 0:00:10.7]}
72. Bf7 {[%clk 0:00:02.9]} 72... Rf3 {[%clk 0:00:10.8]} 73. Bg8 {[%clk
0:00:02.7]} 73... Rf2+ {[%clk 0:00:11.2]} 74. Kd3 {[%clk 0:00:01.7]} 74... Rb2
{[%clk 0:00:11.4]} 75. Bf7 {[%clk 0:00:01.5]} 75... Rb1 {[%clk 0:00:11.6]} 76.
Bg8 {[%clk 0:00:02.1]} 76... Rc1 {[%clk 0:00:11.7]} 77. Kd2 {[%clk 0:00:02.5]}
77... Rc8 {[%clk 0:00:11.3]} 78. Bf7 {[%clk 0:00:03.2]} 78... Rd8+ {[%clk
0:00:11.2]} 79. Kc2 {[%clk 0:00:03.8]} 79... Rd7 {[%clk 0:00:11.5]} 80. Be6
{[%clk 0:00:04.1]} 80... Re7 {[%clk 0:00:11.4]} 81. Bg8 {[%clk 0:00:04.5]} 81...
Re2+ {[%clk 0:00:11.2]} 82. Kd3 {[%clk 0:00:05]} 82... Rxa2 {[%clk 0:00:10.4]}
83. Bxa2 {[%clk 0:00:04.3]} 83... Ka4 {[%clk 0:00:10.3]} 84. Kc3 {[%clk
0:00:05.2]} 84... Ka5 {[%clk 0:00:10.5]} 85. Kb3 {[%clk 0:00:05.4]} 85... Kb6
{[%clk 0:00:11.4]} 86. Kxa3 {[%clk 0:00:05.8]} 1/2-1/2

[Event "Late-Titled-Tuesday-Blitz-June-04-2024"]
[Site "Chess.com"]
[Date "2024.06.04"]
[Round "6"]
[White "Fore_Man"]
[Black "destroyer305"]
[Result "0-1"]
[WhiteElo "2229"]
[BlackElo "2445"]
[TimeControl "180+1"]
[EndTime "15:07:48 PDT"]
[Termination "destroyer305 won by resignation"]

1. Nf3 {[%clk 0:03:00.9]} 1... g6 {[%clk 0:02:56.4]} 2. g3 {[%clk 0:02:48.6]}
2... Bg7 {[%clk 0:02:55.2]} 3. Bg2 {[%clk 0:02:49.1]} 3... e5 {[%clk 0:02:54.6]}
4. d3 {[%clk 0:02:48.5]} 4... d5 {[%clk 0:02:54.2]} 5. c4 {[%clk 0:02:48.9]}
5... dxc4 {[%clk 0:02:43.5]} 6. Qa4+ {[%clk 0:02:48.6]} 6... Nd7 {[%clk
0:02:44.1]} 7. Qxc4 {[%clk 0:02:48.7]} 7... Ne7 {[%clk 0:02:43.9]} 8. O-O {[%clk
0:02:46.2]} 8... O-O {[%clk 0:02:44]} 9. Nc3 {[%clk 0:02:46.3]} 9... h6 {[%clk
0:02:38.4]} 10. Qb3 {[%clk 0:02:27.9]} 10... Nc6 {[%clk 0:02:37.6]} 11. Be3
{[%clk 0:02:25]} 11... Nb6 {[%clk 0:02:35.2]} 12. Qc2 {[%clk 0:02:21]} 12... Be6
{[%clk 0:02:33]} 13. Nd2 {[%clk 0:02:08.3]} 13... Qd7 {[%clk 0:02:01.3]} 14. Nb3
{[%clk 0:01:49.3]} 14... Nd4 {[%clk 0:01:01.1]} 15. Bxd4 {[%clk 0:01:45.9]}
15... exd4 {[%clk 0:01:02]} 16. Nc5 {[%clk 0:01:44.7]} 16... Qe7 {[%clk
0:01:02.7]} 17. Nxe6 {[%clk 0:01:41.7]} 17... Qxe6 {[%clk 0:00:58]} 18. Ne4
{[%clk 0:01:41.8]} 18... c6 {[%clk 0:00:56.3]} 19. Nc5 {[%clk 0:01:40.3]} 19...
Qe7 {[%clk 0:00:56.9]} 20. a4 {[%clk 0:01:39.1]} 20... Rfe8 {[%clk 0:00:50.4]}
21. a5 {[%clk 0:01:30.7]} 21... Nd5 {[%clk 0:00:46.5]} 22. Bf3 {[%clk
0:01:20.7]} 22... Rac8 {[%clk 0:00:42.1]} 23. Rfe1 {[%clk 0:01:06.2]} 23... Red8
{[%clk 0:00:37.5]} 24. Qc4 {[%clk 0:01:05]} 24... b6 {[%clk 0:00:31.7]} 25. axb6
{[%clk 0:01:01.3]} 25... axb6 {[%clk 0:00:32.6]} 26. Nb3 {[%clk 0:00:59.5]}
26... Nb4 {[%clk 0:00:24.5]} 27. Rac1 {[%clk 0:00:41.1]} 27... c5 {[%clk
0:00:24.9]} 28. Nd2 {[%clk 0:00:31.5]} 28... Qd7 {[%clk 0:00:21.2]} 29. Kg2
{[%clk 0:00:28.5]} 29... h5 {[%clk 0:00:20.7]} 30. h4 {[%clk 0:00:28.4]} 30...
Re8 {[%clk 0:00:20.7]} 31. Ne4 {[%clk 0:00:28.5]} 31... Rcd8 {[%clk 0:00:18.5]}
32. Ng5 {[%clk 0:00:28.3]} 32... Qf5 {[%clk 0:00:18.1]} 33. Be4 {[%clk 0:00:28]}
33... Qd7 {[%clk 0:00:16]} 34. Bxg6 {[%clk 0:00:28.1]} 34... Re7 {[%clk
0:00:13.3]} 35. Be4 {[%clk 0:00:27.3]} 35... Bf6 {[%clk 0:00:12.2]} 36. Nf3
{[%clk 0:00:24.2]} 36... Rde8 {[%clk 0:00:12.4]} 37. Qb3 {[%clk 0:00:19.6]}
37... Rxe4 {[%clk 0:00:12.3]} 38. dxe4 {[%clk 0:00:20.1]} 38... Rxe4 {[%clk
0:00:13.1]} 39. Rcd1 {[%clk 0:00:20.4]} 39... Qc6 {[%clk 0:00:13.5]} 40. Qc4
{[%clk 0:00:18.2]} 40... Nd5 {[%clk 0:00:12.3]} 41. Qd3 {[%clk 0:00:18.1]} 41...
Nb4 {[%clk 0:00:11.3]} 42. Qd2 {[%clk 0:00:17.7]} 42... Re6 {[%clk 0:00:09.9]}
43. Qf4 {[%clk 0:00:17.6]} 43... Re4 {[%clk 0:00:09.5]} 44. Qf5 {[%clk
0:00:17.1]} 44... Kg7 {[%clk 0:00:08.3]} 45. Kg1 {[%clk 0:00:16.1]} 45... Nc2
{[%clk 0:00:05.5]} 46. Rf1 {[%clk 0:00:14.9]} 46... Rxe2 {[%clk 0:00:05.7]} 47.
Ng5 {[%clk 0:00:13.8]} 47... Bxg5 {[%clk 0:00:04.2]} 48. Qxg5+ {[%clk
0:00:14.7]} 48... Qg6 {[%clk 0:00:04.3]} 49. Qf4 {[%clk 0:00:11.6]} 49... d3
{[%clk 0:00:03.4]} 50. Qf3 {[%clk 0:00:10]} 50... c4 {[%clk 0:00:03.2]} 51. b3
{[%clk 0:00:08.9]} 51... Nd4 {[%clk 0:00:03.9]} 52. Qd5 {[%clk 0:00:07.6]} 52...
Nxb3 {[%clk 0:00:03.9]} 53. Qxc4 {[%clk 0:00:06.8]} 53... Nd2 {[%clk 0:00:04.6]}
54. Qd4+ {[%clk 0:00:05.3]} 54... Qf6 {[%clk 0:00:04.2]} 55. Qxf6+ {[%clk
0:00:04.8]} 55... Kxf6 {[%clk 0:00:05.1]} 56. Kg2 {[%clk 0:00:01.6]} 56... Nxf1
{[%clk 0:00:05.2]} 57. Kxf1 {[%clk 0:00:02.4]} 57... Rc2 {[%clk 0:00:05.1]} 58.
Rxd3 {[%clk 0:00:03]} 58... Rc6 {[%clk 0:00:05.9]} 59. Rb3 {[%clk 0:00:03.6]}
59... Ke6 {[%clk 0:00:05.5]} 60. Ke2 {[%clk 0:00:04.5]} 60... Kd6 {[%clk
0:00:06.1]} 61. Ke3 {[%clk 0:00:05.4]} 61... Kc5 {[%clk 0:00:06.8]} 62. f4
{[%clk 0:00:05.9]} 62... b5 {[%clk 0:00:07.4]} 63. Rc3+ {[%clk 0:00:06]} 63...
Kb6 {[%clk 0:00:07.5]} 64. Rb3 {[%clk 0:00:06.4]} 64... Kc5 {[%clk 0:00:07]} 65.
Rc3+ {[%clk 0:00:06.7]} 65... Kb6 {[%clk 0:00:07.4]} 66. Rb3 {[%clk 0:00:07.3]}
66... Ka5 {[%clk 0:00:08.1]} 67. Ra3+ {[%clk 0:00:07.8]} 67... Kb4 {[%clk
0:00:08.3]} 68. Ra1 {[%clk 0:00:08.6]} 68... Rc3+ {[%clk 0:00:08]} 69. Ke4
{[%clk 0:00:07.1]} 69... Rxg3 {[%clk 0:00:07.8]} 70. Kf5 {[%clk 0:00:06.9]}
70... Rg4 {[%clk 0:00:08]} 71. Ra7 {[%clk 0:00:07.5]} 71... Rxh4 {[%clk
0:00:07.4]} 72. Rxf7 {[%clk 0:00:08.2]} 72... Rh1 {[%clk 0:00:08]} 73. Rb7
{[%clk 0:00:08.6]} 73... Kc4 {[%clk 0:00:07.9]} 74. Kg5 {[%clk 0:00:08]} 74...
h4 {[%clk 0:00:07.7]} 75. Kg4 {[%clk 0:00:08.3]} 75... h3 {[%clk 0:00:07.7]} 76.
Kg3 {[%clk 0:00:08.4]} 76... b4 {[%clk 0:00:07.6]} 77. f5 {[%clk 0:00:08.5]}
77... Rf1 {[%clk 0:00:07.8]} 78. Rc7+ {[%clk 0:00:07.8]} 78... Kb3 {[%clk
0:00:07.7]} 79. Kxh3 {[%clk 0:00:06.7]} 79... Rxf5 {[%clk 0:00:07.2]} 80. Kg4
{[%clk 0:00:07.6]} 80... Rf8 {[%clk 0:00:07.4]} 81. Rc5 {[%clk 0:00:06.6]} 81...
Ka3 {[%clk 0:00:07.7]} 82. Ra5+ {[%clk 0:00:06.6]} 82... Kb2 {[%clk 0:00:07.5]}
83. Rb5 {[%clk 0:00:07.2]} 83... b3 {[%clk 0:00:08.1]} 84. Rb7 {[%clk
0:00:07.7]} 84... Kc2 {[%clk 0:00:08.4]} 85. Kg3 {[%clk 0:00:07.9]} 85... b2
{[%clk 0:00:08.4]} 86. Rc7+ {[%clk 0:00:08.6]} 86... Kd2 {[%clk 0:00:08.8]} 87.
Rd7+ {[%clk 0:00:08.9]} 87... Kc1 {[%clk 0:00:09.1]} 88. Rc7+ {[%clk 0:00:09.4]}
88... Kb1 {[%clk 0:00:09.5]} 89. Rb7 {[%clk 0:00:09.4]} 89... Rc8 {[%clk
0:00:10]} 90. Kf3 {[%clk 0:00:09.7]} 90... Kc2 {[%clk 0:00:10.6]} 0-1